Cogmind - Beta 17.1 @@@ ROGUE MODE // 2026.09.05 @ 01:18:46 Player: LandRaider Result: Destroyed by D-53 Grenadier with Mini Grenade Launcher Performance ------------- Evolutions (0) 0 Regions Visited (2) 400 Robots Destroyed (46) 230 Value Destroyed (869) 869 Prototype IDs (3) 60 Alien Tech Used (0) 0 Bonus (0) 0 TOTAL SCORE: 1559 Bonus ------- None Cogmind --------- Core Integrity 0/250 Matter 293/300 Energy 160/160 System Corruption 0% Temperature Cool (0) Movement Walking (190) Ox1 Location -10/Mines Parts ------- > --- POWER (1) -------- Light Nuclear Core > --- PROPULSION (2) --- Aluminum Leg Aluminum Leg > --- UTILITY (2) ------ Large Storage Unit Improved Terrain Scanner > --- WEAPON (2) ------- Medium Laser > --- INVENTORY (15) --- Ion Engine Ion Engine Light Treads Light Treads Light Treads Light Treads Light Treads Improved Heat Sink Small Storage Unit Signal Interpreter Light Armor Plating Light Cannon Light Cannon Light Cannon Mining Laser Peak State ------------ > --- POWER ------------ Light Nuclear Core > --- PROPULSION ------- Aluminum Leg Aluminum Leg > --- UTILITY ---------- Large Storage Unit Improved Terrain Scanner > --- WEAPON ----------- Medium Laser Rocket Launcher > --- INVENTORY -------- Ion Engine Ion Engine Light Treads Light Treads Light Treads Light Treads Light Treads Improved Heat Sink Small Storage Unit Signal Interpreter Light Armor Plating Light Cannon Light Cannon Light Cannon Mining Laser [Rating: 13] Favorites ----------- Power Light Nuclear Core Engine Light Ion Engine Power Core Light Nuclear Core Propulsion Light Treads Treads Light Treads Leg Aluminum Leg Utility Large Storage Unit Device Seismic Detector Storage Large Storage Unit Weapon Medium Laser Energy Gun Medium Laser Ballistic Cannon Light Cannon Launcher Rocket Launcher Build | -11 -10 -10 ------- Run | Yrd Mat Min Slots Evolved . | . . . Power . | . . . Propulsion . | . . . Utility . | . . . Weapon . | . . . Parts Attached 21 | 8 9 4 Power 4 | 1 3 . Engine 2 | 1 1 . Core 2 | . 2 . Reactor . | . . . Propulsion 8 | 2 4 2 Treads 6 | 2 4 . Leg 2 | . . 2 Wheel . | . . . Hover . | . . . Flight . | . . . Utility 4 | 2 1 1 Device 2 | 1 . 1 Storage 2 | 1 1 . Processor . | . . . Hackware . | . . . Protection . | . . . Artifact . | . . . Weapon 5 | 3 1 1 Energy Gun 3 | 3 . . Energy Cannon . | . . . Ballistic Gun . | . . . Ballistic Cannon 1 | . 1 . Launcher 1 | . . 1 Special Weapon . | . . . Impact Weapon . | . . . Slashing Weapon . | . . . Piercing Weapon . | . . . Special Melee Weapon . | . . . Unidentified Prototypes . | . . . Parts Lost 4 | . 3 1 Power 1 | . 1 . Propulsion . | . . . Utility 1 | . 1 . Weapon 2 | . 1 1 Highest Loss Streak 2 | . 2 1 To Critical Strikes . | . . . Average Backups 11 | 3 11 15 Power 1 | . 1 2 Propulsion 5 | 1 5 6 Utility 2 | . 2 3 Weapon 2 | . 1 3 Tool/Special . | . . . Unused Backups 12 | . 3 9 Power 3 | . 1 2 Propulsion 2 | . 1 1 Utility 4 | . 1 3 Weapon 3 | . . 3 Tool/Special . | . . . Average Slot Usage (%) 96 | . 96 95 Engine 2 | . 2 . Core 11 | . 10 14 Treads 23 | . 28 14 Leg 4 | . . 13 Device 10 | . 11 9 Storage 14 | . 14 14 Energy Gun 21 | . 25 14 Ballistic Cannon 5 | . 2 10 Launcher 1 | . . 3 Peak Build Rating 13 | 7 10 13 Average Rating 9 | 5 9 11 On Entrance 5 | . 7 9 Avg Prop Armor Cover (%) . | . . . Naked Turns . | . . . Heaviest Build 32 | 13 30 32 Greatest Support 40 | 40 40 40 Greatest Overweight (x) 1 | . . 1 Average Overweight (x) . | . . . Largest Inventory Capacity 15 | 8 15 15 Average Capacity 14 | 7 14 15 Most Carried 15 | 5 15 15 Average Carried 11 | 3 11 14 Final Capacity 15 | 8 15 15 Final Carried 15 | 4 15 15 Class Distribution -------------------- 100% | Mutant Dominant Class ---------------- Mutant | -10/Materials Mutant | -10/Mines Resources | -11 -10 -10 ----------- Run | Yrd Mat Min Matter Collected 638 | 280 149 209 Remotely . | . . . Salvage Created 1224 | 162 816 246 Parts 75 | 7 50 18 Haulers Intercepted 2 | . 2 . Recyclers Shooed 4 | 1 2 1 Parts Field Recycled . | . . . Retrieved Matter . | . . . Parts Self-Destructed . | . . . Prevented . | . . . Parts Restored . | . . . Kills | -11 -10 -10 ------- Run | Yrd Mat Min Combat Hostiles Destroyed 26 | . 18 8 Guns 20 | . 16 4 Cannons 3 | . 2 1 AOE 3 | . . 3 Classes Destroyed 8 | 3 4 1 Worker 4 | 2 1 1 Builder 2 | . . 2 Tunneler 5 | 4 . 1 Hauler 2 | . 2 . Recycler 4 | 1 1 2 Watcher 3 | . 3 . Swarmer 14 | . 6 8 Grunt 12 | . 12 . Best Kill Streak 5 | 5 5 4 Combat Bots Only 5 | . 5 3 Max Kills in Single Turn 3 | 2 2 3 Gunslinging 1 | . 1 . Exploded 3 | . . 3 Melee . | . . . Uniques/NPCs Destroyed . | . . . Combat | -11 -10 -10 -------- Run | Yrd Mat Min Hostile Shots Fired 110 | . 70 40 Missed 25 | . 20 5 Hits 85 | . 50 35 Projectile 85 | . 50 35 AOE 8 | . . 8 Critical Strikes 1 | . 1 . Damage Taken 1070 | . 521 549 Core 266 | . 101 165 Absorbed by Shields . | . . . Regen/Repaired (Parts) 66 | . 66 . Core Remaining (%) 100 | 100 . . Volleys Fired 107 | 19 60 28 Largest 2 | 2 2 2 Hottest 100 | 100 100 80 Shots Fired 203 | 38 112 53 Gun 168 | 38 105 25 Cannon 32 | . 7 25 Launcher 3 | . . 3 Special . | . . . Kinetic 32 | . 7 25 Thermal 168 | 38 105 25 Explosive 3 | . . 3 Electromagnetic . | . . . Robot Hit Streak 16 | 6 16 5 Robot Miss Streak 6 | 2 6 2 Penetration Max . | . . . Secondary Targets 1 | . 1 . Max Gunslinging Chain 1 | . 1 . Shots Hit Robots 125 | 26 71 28 Core Hits 65 | 7 43 15 Critical Kills . | . . . Critical Parts Destroyed . | . . . Critical Strikes 14 | 4 6 4 Burn 10 | 4 4 2 Blast 4 | . 2 2 Melee Attacks . | . . . Impact . | . . . Slashing . | . . . Piercing . | . . . Sneak Attacks . | . . . Combat Hostiles . | . . . Follow-up Attacks . | . . . Damage Inflicted 1983 | 338 933 712 Guns 1353 | 338 844 171 Cannons 339 | . 89 250 Explosions 290 | . . 290 Melee . | . . . Ramming 1 | . . 1 Kinetic 339 | . 89 250 Thermal 1643 | 338 844 461 Explosive . | . . . Electromagnetic . | . . . Impact . | . . . Slashing . | . . . Piercing . | . . . Highest Corruption . | . . . Average Corruption . | . . . Corruption Purged . | . . . Corruption Blocked . | . . . Overload Shots . | . . . Overflow Damage . | . . . Projectiles . | . . . Explosions . | . . . Melee . | . . . Knockbacks 5 | . . 5 Impact . | . . . Kinetic 5 | . . 5 Secondary . | . . . Self-Inflicted Damage 63 | . . 63 Shots 2 | . . 2 Rammed . | . . . Targets Rammed 1 | . . 1 Kicked 1 | . . 1 Crushed . | . . . Highest Temperature 358 | 358 315 216 Average Temperature 97 | 140 93 68 Received Heat Transfer 240 | . 240 . Effects 3 | 1 2 . Energy Bleed 1 | . 1 . Matter Decay 1 | . 1 . Short Circuit 1 | 1 . . Siege Activations . | . . . Martial Activations . | . . . Shielding Activations . | . . . Robots Disrupted . | . . . Combat Hostiles . | . . . Robots Corrupted . | . . . Combat Hostiles . | . . . Parts Fried . | . . . Impact Corruptions . | . . . Robots Melted 1 | 1 . . Combat Hostiles . | . . . Parts Melted 8 | 2 4 2 Heat Transferred 5136 | 1295 2775 1066 Parts Sabotaged . | . . . Parts Stolen . | . . . Parts Stripped . | . . . Power Chain Reactions . | . . . Alert | -11 -10 -10 ------- Run | Yrd Mat Min Maximum Alert Level 1 | . 1 1 Low Security (%) 88 | 100 88 83 Level 1 11 | . 11 16 Level 2 . | . . . Level 3 . | . . . Level 4 . | . . . Level 5 . | . . . High Security . | . . . Max Security . | . . . Peak Influence 382 | 15 240 382 Initial 75 | . . 75 Average 101 | 2 89 158 Influence Increases 1218 | 35 622 561 Destroy 0b10 Robot/C 520 | . 360 160 Destroy 0b10 Robot/NC 100 | 35 35 30 Destroy Leader 130 | . 100 30 Successful Hack 19 | . 19 . Select Force Hacks 60 | . 60 . Disable Machine 255 | . 15 240 Destroy Structure 59 | . 3 56 Lose Combat Pursuer 75 | . 30 45 Influence Decreases 854 | 35 428 391 Entered New Map 119 | . . 119 Time Decay 695 | 35 398 262 Lost Part 40 | . 30 10 Squads Dispatched 5 | . 5 . Investigation 4 | . 4 . Extermination . | . . . Reinforcement 1 | . 1 . Assault . | . . . Garrison . | . . . Intercept . | . . . Searches Triggered . | . . . Construction Impeded . | . . . Haulers Reinforced . | . . . Active Scanning Responses . | . . . Cargo Convoy Interrupts . | . . . Stealth | -11 -10 -10 --------- Run | Yrd Mat Min Distress Signals 1 | . 1 . Communications Jammed . | . . . Distress Signals . | . . . Times Spotted 34 | . 23 11 Peak Tracking Total 4 | . 4 3 Tactical Retreats 3 | . 1 2 Traps | -11 -10 -10 ------- Run | Yrd Mat Min Traps Triggered 2 | . 2 . Indirectly . | . . . Trap Hack Attempts . | . . . Triggered . | . . . Disarmed . | . . . Reprogrammed . | . . . Reused . | . . . Traps Extracted . | . . . Installed . | . . . Triggered . | . . . Machines | -11 -10 -10 ---------- Run | Yrd Mat Min Machines Disabled 17 | . 1 16 Max in Single Turn 15 | . 1 15 Machines Repaired . | . . . Machines Dismantled . | . . . Machines Sabotaged . | . . . Overloaded Fab Kills . | . . . Hacking | -11 -10 -10 --------- Run | Yrd Mat Min Machines Accessed 9 | . 9 . Terminals 6 | . 6 . Fabricators . | . . . Repair Stations 1 | . 1 . Recycling Units 2 | . 2 . Scanalyzers . | . . . Garrison Access . | . . . Total Hacks 24 | . 24 . Successful 15 | . 15 . Failed 9 | . 9 . Catastrophic 2 | . 2 . Database Lockouts . | . . . Manual 7 | . 7 . Terminals 18 | . 18 . Fabricators . | . . . Repair Stations 2 | . 2 . Recycling Units 4 | . 4 . Scanalyzers . | . . . Garrison Access . | . . . Terminal Hacks 8 | . 8 . Prototype ID Bank 1 | . 1 . Locate Traps 1 | . 1 . Dispatch Records 1 | . 1 . Maintenance Status 1 | . 1 . Surveillance Status 1 | . 1 . Recall Investigation 1 | . 1 . Hauler Manifests 1 | . 1 . Zone Layout 1 | . 1 . Fabricator Hacks . | . . . Repair Station Hacks 2 | . 2 . Scan Component 1 | . 1 . Repair 1 | . 1 . Recycling Unit Hacks 2 | . 2 . Retrieve Components 2 | . 2 . Scanalyzer . | . . . Garrison Access Hacks . | . . . Unauthorized Hacks 3 | . 3 . Terminals 1 | . 1 . Botnet 1 | . 1 . Fabricators . | . . . Repair Stations . | . . . Recycling Units 2 | . 2 . Tunnel 2 | . 2 . Scanalyzers . | . . . Garrison Access . | . . . Data Cores Recovered . | . . . Used . | . . . Hacking Detections 7 | . 7 . Full Trace Events . | . . . Feedback Events . | . . . Feedback Blocked . | . . . Robot Schematics Acquired . | . . . Robots Built . | . . . Authchips . | . . . Time . | . . . Total Robot Build Rating . | . . . Part Schematics Acquired . | . . . Parts Built . | . . . Authchips . | . . . Time . | . . . Total Part Build Rating . | . . . Part Studies Acquired . | . . . Parts Repaired 1 | . 1 . Time 26 | . 26 . Parts Recycled . | . . . Recycled Matter . | . . . Retrieved Matter . | . . . Retrieved Components 18 | . 18 . Parts Scanalyzed . | . . . Part Schematics Acquired . | . . . Parts Damaged . | . . . Bothacking | -11 -10 -10 ------------ Run | Yrd Mat Min Used RIF Installer . | . . . Robots Hacked . | . . . Non-combat . | . . . Combat . | . . . Robot Hacks Applied . | . . . Relay Couplers Released . | . . . Fabnet Peak Effective % . | . . . Robots Rewired . | . . . Allies Hacked . | . . . Hacks Repelled . | . . . Allies | -11 -10 -10 -------- Run | Yrd Mat Min Total Allies . | . . . Largest Group . | . . . Highest-Rated Group . | . . . Highest-Rated Ally . | . . . Total Orders . | . . . Ally Attacks . | . . . Total Damage . | . . . Kills . | . . . Allies Corrupted . | . . . Allies Melted . | . . . Intel | -11 -10 -10 ------- Run | Yrd Mat Min Active Infowar (turns) 1446 | 11 1016 419 Terrain 419 | . . 419 Seismic 1027 | 11 1016 . Robot Analysis Total . | . . . Derelict Logs Recovered 2 | . . 2 Drone Launches . | . . . Drone Recoveries . | . . . Exploration | -11 -10 -10 ------------- Run | Yrd Mat Min Turns Passed 2025 | 180 1267 578 Spaces Moved 903 | 53 575 275 Core 2 | 2 . . Treads 758 | 51 575 132 Legs 143 | . . 143 Wheels . | . . . Hover . | . . . Flight . | . . . Fastest Speed 50 | 50 160 160 Average Speed 164 | 155 160 175 Slowest Speed 190 | 160 160 190 Overloaded Moves . | . . . Propulsion Burnouts . | . . . Robots Hopped . | . . . Potential Cave-ins . | . . . Cave-ins Triggered . | . . . Exploration Rate (%) 45 | 4 85 47 Regions Visited 2 Branch Regions 1 Pre-discovered Areas 3 | . 2 1 Known Exits Taken . | . . . Unknown Exits Taken 2 | 1 1 . Scrap Searched 2 | . . 2 Spaces Dug . | . . . Terrain Destroyed 60 | . . 60 Melee . | . . . Projectile . | . . . AOE 60 | . . 60 Terrain Rammed . | . . . Walls Destroyed . | . . . Machines Disabled . | . . . Actions | -11 -10 -10 --------- Run | Yrd Mat Min Total 1235 | 110 811 314 Wait 175 | 24 151 . Move 901 | 52 574 275 Hop . | . . . Pick Up 19 | 6 11 2 Fast Attach 9 | 6 2 1 Attach 3 | 2 1 . Detach . | . . . Swap 12 | . 7 5 Drop 8 | 1 5 2 Fire 107 | 19 60 28 Melee . | . . . Ram . | . . . Kick 1 | . . 1 Crush . | . . . Escape Stasis . | . . . Rewire . | . . . Trap . | . . . Miscellaneous . | . . . Route ------- -11/Scrapyard -10/Materials (discovered 6 exits: [*Mat x3] / [*Min x2] / [*Sub]) -10/Mines (discovered 2 exits: [*Mat] / [*Sub]) History --------- Turn | Location | Event 26 | -11/Scrapyard | Discovered new exit (range 15) 181 | -11/Scrapyard | Entered Materials 193 | -10/Materials | Discovered new exit (range 16) 301 | -10/Materials | Build established: Mutant 325 | -10/Materials | Discovered new exit (range 15) 547 | -10/Materials | Discovered new exit (range 15) 699 | -10/Materials | Discovered new exit (range 12) 816 | -10/Materials | Discovered new exit (range 10) 1034 | -10/Materials | Discovered new exit (range 15) 1357 | -10/Materials | Repaired Med. Laser 1448 | -10/Materials | Entered Mines 1667 | -10/Mines | Discovered new exit (range 10) 1735 | -10/Mines | Received a Rocket Launcher from a helpful Derelict 1793 | -10/Mines | Discovered new exit (range 3) 1963 | -10/Mines | Assembled infested the area 2000 | -10/Mines | Learned 8 Materials zone layouts 2012 | -10/Mines | Core integrity fell below 50% 2018 | -10/Mines | Core integrity fell below 20% 2026 | -10/Mines | Destroyed by D-53 Grenadier with Mini Grenade Launcher Last Messages --------------- 01907_ K-01 Serf collects debris. 01907_ U-05 Engineer lays Concrete. 01912_ K-01 Serf collects debris. 01928_ K-01 Serf cleans the Plasma Injector. 01933_ Plasma Injector explodes. 01933_ S-10 Pest destroyed. 01933_ Plasma Injector explodes. 01933_ S-10 Pest destroyed. 01963_ ALERT: Infestation in the mines, dispatching Demolisher response squad. 01982_ C-45 Heavy ARC bursts open, deploying its payload. 01982_ D-53 Grenadier unfolds itself. 01992_ Kicked U-05 Engineer. 01994_ Searching scrap... 01994_ Found Terrain Scanner. 01994_ Found 36 Matter. 01995_ Acquired 36 matter. 02000_ Acquired derelict log, extracted data. Data stored: Materials zone layouts (x8). 02011_ Rocket Launcher destroyed. Map ----- +----------------------------------------------------+ | # #??????????????????????????????????????? | | # * #??????????????????????????????????????? | | ## ##??????????????????????????????????????? | | ?# ####???????????????#???????????????????????? | | ?## #??????????????????????????????????????????? | | ??## #?????????????????????????? ???????????#???? | | ???# #??????????###?????????????????????????????? | | ???# #????????## ##????????????????????????????? | | ???# ######???# ##???????#???????????????????? | | ???# #???# #??####?????????????????????? | | ???# #### #???# #??# ??????????????? ??????? | | ???# #??# ##?## #???# #??????????????????????? | | ???# #??# #### #????# #??#??????#??????????#?? | | ???# #??# #?????# #??#????#???#????????#?? | | ???# #??##### ##???### ##????????????#????????? | | ???# #??????## #???## ###????################ | | ???# #???????# ##??# ###???# | | ???# ???????# #### ##### | | ??? ?????#?# ## ! | | ??? ???#???## ## d d#### | | ??? ????????## ## ##?# | | ??? #?????????# #?# | | ???###??????????# ### ##?# | | ????????????????# ### #?# | | ???????????????## |#### #?# | | ????????????#???# *= % @ ### = | | ????????????????####### ## | | ???????????????????##?# # | | ??????????????????##### ## | | ????????????#######% ### ##### | | ????????????# % = %#######??##% | | ????????????# %= ##???##??# | | ????????????# ###!# ##?????#??# | | ????#???????????# #######???#????## | | ???????????????## #??#???#?#????### | | ????????????????# #?????#?????####" | | ????????????????# #???????#?#### #" | | ????????????????#=##???????## | | ??????? ????????#!########## #"#" """""""#"" | | ????????????????#%##% ! ############## | | ???????????????##=##=####### #??????????? | | ???#????????????# ##????## # ##??????????? | | ??????????????#?# ####??#???## ##???#???????? | | ????????????????# #??#???#??## ###?##??#??#???? | | ????????????????# #????????### #?#?#????#????? | | ?????????? ????? #??###?##?## ####???#??????? | | ???????????????? ##?## #???## ^ ^ #?#?#??????? | | ????????????? ?# ???# #### ## # #??????????? | | ???????????????? ?#?# ^ #?#??#??????#? | | ??????????????#? ##??# < # # #??????????? | +----------------------------------------------------+ Best States ------------- Heat Dissipation 25 Energy Generation 14 Energy Capacity 160 Matter Stores 300 Matter Capacity 300 Sight Range 16 Terrain Scan Range 16 Terrain Scan Density 10 Evasion (%) 40 Recoil Reduction 2 Item Schematics ----------------- None Robot Schematics ------------------ None Fabricated ------------ Nothing Repaired ---------- Med. Laser | 5% | -10/Materials Studied --------- None Alien Tech Used ----------------- None Achievements -------------- None Challenges ------------ None Game ------ Seed BehemothRelayShovel Manual? 0 Play Time 00:24:12 Cumulative 140.2 hours Start 2026.09.04 @ 21:52:30 End 2026.09.05 @ 01:18:46 Sessions 1 Manual Loads 0 Difficulty Rogue Special Mode None Game No. 120 Rogue 118 Adventurer 2 Explorer 0 Win Type - Total 0 Types 0/0/0/0/0/0/0/0/0/0 Lore% 59 Gallery% 50 Achievement% 41 Wizard Run 0 Options --------- Layout 0 ASCII 0 Keyboard 0 Movement Mouse Keybinds 0 Fullscreen 2 Font 24/Smallcaps Map View 76x50 Zoom Use 0% Tactical HUD 1 Map Filters NONE Filters NONE Steam 1 RUN: 7873705a-d505-4dce-9ec9-accc71b5a92b